{"text_format":"3","workbook":"xlsx","n_sheets":4,"sheets":["Début","Dépenses","Recettes","Résumé"],"not_rendered":{"charts":1,"defined_names":2},"read":"whole","date_system":"1900"}

{"sheet":"Début","index":0,"n_rows":8,"n_cols":2,"rows_kept":8}
[null,"À PROPOS DE CE MODÈLE"]
[null,"Utilisez ce classeur Budget d’événement pour effectuer le suivi des dépenses engagées et des recettes tirées d’un événement."]
[null,"Entrez le nom de l’événement ainsi que les détails dans les tableaux des feuilles de calcul Dépenses et Recettes."]
[null,"Le total des dépenses et le total des recettes sont calculés automatiquement."]
[null,"La synthèse et le graphique des résultats sont mis à jour automatiquement dans la feuille de calcul Synthèse."]
[null,"Remarque : "]
[null,"Des instructions supplémentaires sont disponibles dans la colonne A de chaque feuille de calcul. Ce texte a été intentionnellement masqué. Pour supprimer le texte, sélectionnez la colonne A et choisissez SUPPRIMER. Pour afficher le texte, sélectionnez la colonne A et changez la couleur de la police."]
[null,"Pour en savoir plus sur un tableau, appuyez sur Maj puis F10 à l’intérieur du tableau, sélectionnez l’option TABLE, puis TEXTE DE REMPLACEMENT."]

{"sheet":"Dépenses","index":1,"n_rows":33,"n_cols":8,"rows_kept":33,"merged":[[0,5,0,7],[1,1,1,7],[2,6,2,7]]}
["Entrez les dépenses estimé et réel de chaque catégorie dans les tableaux correspondants de cette feuille de calcul. Le total des dépenses est calculé automatiquement. Des instructions utiles sur l’utilisation de cette feuille de calcul sont disponibles dans les cellules de cette colonne. Appuyez sur la flèche Bas pour commencer."]
["Entrez le nom de l’événement dans la cellule de droite pour personnaliser le titre de cette feuille de calcul et des autres.","Budget d’événement pour \nNom de l’événement"]
["L’étiquette Dépenses figure dans la cellule G3.",{"$nulls":5}," Dépenses"]
["L’étiquette Estimé figure dans la cellule G4 et Réel dans la cellule H4.",{"$nulls":5},"Estimé","Réel"]
["L’étiquette Total des dépenses se trouve dans la cellule de droite. Le total estimé des dépenses est calculé automatiquement dans la cellule G5. Le total réel des dépenses et la barre indiquant le total réel des dépenses sont mis à jour automatiquement dans la cellule H5. L’instruction suivante figure dans la cellule A7.","Total des dépenses",{"$nulls":4},{"$f":"SUM(C12,C20,C26,C33,G12,G20,G25)","v":{"v":1145,"d":"1,145.00 $"}},{"$f":"SUM(D12,D20,D26,D33,H12,H20,H25)","v":{"v":395,"d":"395.00 $"}}]
[]
["Entrez les dépenses consacrées au site dans le tableau à partir de la cellule de droite, et les dépenses en rafraîchissements dans le tableau à partir de la cellule F7. L’instruction suivante figure dans la cellule A14.","Site","Estimé","Réel",null,"Rafraîchissements","Estimé","Réel"]
[null,"Location de salle",{"v":500,"d":"500.00 $"},{"v":250,"d":"250.00 $"},null,"Repas"]
[null,"Personnel du site",{"v":400,"d":"400.00 $"},{"v":50,"d":"50.00 $"},null,"Boissons"]
[null,"Matériel",{"$nulls":3},"Linge de table"]
[null,"Tables et chaises",{"$nulls":3},"Personnel et pourboires"]
[null,"Total",{"$f":"SUBTOTAL(109,DépensesSite[Estimé])","v":{"v":900,"d":"900.00 $"}},{"$f":"SUBTOTAL(109,DépensesSite[Réel])","v":{"v":300,"d":"300.00 $"}},null,"Total",{"$f":"SUBTOTAL(109,DépensesRafraîchissements[Estimé])","v":{"v":0,"d":"0.00 $"}},{"$f":"SUBTOTAL(109,DépensesRafraîchissements[Réel])","v":{"v":0,"d":"0.00 $"}}]
[]
["Entrez les dépenses consacrées à la décorations dans le tableau à partir de la cellule de droite, et les dépenses relatives au programme dans le tableau à partir de la cellule F14. L’instruction suivante figure dans la cellule A22.","Décorations","Estimé","Réel",null,"Programme","Estimé","Réel"]
[null,"Fleurs",{"v":200,"d":"200.00 $"},{"v":50,"d":"50.00 $"},null,"Performeurs"]
[null,"Bougies",{"$nulls":3},"Présentateurs"]
[null,"Éclairage",{"$nulls":3},"Déplacements"]
[null,"Ballons",{"$nulls":3},"Hôtel"]
[null,"Fournitures papier",{"$nulls":3},"Autres"]
[null,"Total",{"$f":"SUBTOTAL(109,DépensesDécorations[Estimé])","v":{"v":200,"d":"200.00 $"}},{"$f":"SUBTOTAL(109,DépensesDécorations[Réel])","v":{"v":50,"d":"50.00 $"}},null,"Total",{"$f":"SUBTOTAL(109,DépensesProgramme[Estimé])","v":{"v":0,"d":"0.00 $"}},{"$f":"SUBTOTAL(109,DépensesProgramme[Réel])","v":{"v":0,"d":"0.00 $"}}]
[]
["Entrez les dépenses consacrées à la publicité dans le tableau à partir de la cellule de droite, et les dépenses relatives aux prix dans le tableau à partir de la cellule F22. L’instruction suivante figure dans la cellule A28.","Publicité","Estimé","Réel",null,"Prix","Estimé","Réel"]
[null,"Travail graphique",{"v":45,"d":"45.00 $"},{"v":45,"d":"45.00 $"},null,"Rubans/Plaques/Coupes"]
[null,"Photocopie/Impression",{"$nulls":3},"Cadeaux"]
[null,"Affranchissement",{"$nulls":3},"Total",{"$f":"SUBTOTAL(109,DépensesPrix[Estimé])","v":{"v":0,"d":"0.00 $"}},{"$f":"SUBTOTAL(109,DépensesPrix[Réel])","v":{"v":0,"d":"0.00 $"}}]
[null,"Total",{"$f":"SUBTOTAL(109,DépensesPublicité[Estimé])","v":{"v":45,"d":"45.00 $"}},{"$f":"SUBTOTAL(109,DépensesPublicité[Réel])","v":{"v":45,"d":"45.00 $"}}]
[]
["Entrez les dépenses divers dans le tableau à partir de la cellule de droite.","Divers","Estimé","Réel"]
[null,"Téléphone"]
[null,"Transport"]
[null,"Papeterie"]
[null,"Télécopie"]
[null,"Total",{"$f":"SUBTOTAL(109,DépensesDivers[Estimé])","v":{"v":0,"d":"0.00 $"}},{"$f":"SUBTOTAL(109,DépensesDivers[Réel])","v":{"v":0,"d":"0.00 $"}}]

{"sheet":"Recettes","index":2,"n_rows":30,"n_cols":7,"rows_kept":30,"merged":[[1,1,1,6],[2,5,2,6]]}
["Entrez les recettes estimé et réel de chaque catégorie dans les tableaux correspondants de cette feuille de calcul. Le total des recettes est calculé automatiquement. Des instructions utiles sur l’utilisation de cette feuille de calcul sont disponibles dans les cellules de cette colonne. Appuyez sur la flèche Bas pour commencer."]
["Le nom de l’événement est automatiquement mis à jour dans la cellule de droite.",{"$f":"Dépenses!B2","v":"Budget d’événement pour \nNom de l’événement"}]
["L’étiquette Recettes figure dans la cellule F3.",{"$nulls":4}," Recettes"]
["L’étiquette Estimation figure dans la cellule F4 et Réel dans la cellule G4.",{"$nulls":4},"Estimé","Réel"]
["L’étiquette Total des recettes se trouve dans la cellule de droite. Le total estimé des recettes est calculé automatiquement dans la cellule F5. Le total réel des recettes et la barre indiquant le total réel des recettes sont mis à jour automatiquement dans la cellule G5.","Total des recettes",{"$nulls":3},{"$f":"SUM(Entrées[[#Totals],[Total estimé]],PublicitésDansLeProgramme[[#Totals],[Total estimé]],ExposantsEtFournisseurs[[#Totals],[Total estimé]],VenteArticles[[#Totals],[Total estimé]])","v":{"v":1936,"d":"1,936.00 $"}},{"$f":"SUM(Entrées[[#Totals],[Total réel]],PublicitésDansLeProgramme[[#Totals],[Total réel]],ExposantsEtFournisseurs[[#Totals],[Total réel]],VenteArticles[[#Totals],[Total réel]])","v":{"v":1831,"d":"1,831.00 $"}}]
["L’étiquette Entrées se trouve dans la cellule de droite.","Entrées"]
["Entrez le nombre d’entrées estimé et réel avec le prix des billets dans le tableau à partir de la cellule de droite. Les recettes estimé et réel issues des entrées sont calculées automatiquement. L’instruction suivante figure dans la cellule A12.","Estimé","Réel","Type","Prix","Total estimé","Total réel"]
[null,300,278,"Adultes",{"v":5,"d":"5.00 $"},{"$f":"B8*E8","v":{"v":1500,"d":"1,500.00 $"}},{"$f":"C8*E8","v":{"v":1390,"d":"1,390.00 $"}}]
[null,197,195,"Enfants",{"v":2,"d":"2.00 $"},{"$f":"B9*E9","v":{"v":394,"d":"394.00 $"}},{"$f":"C9*E9","v":{"v":390,"d":"390.00 $"}}]
[null,42,51,"Autres",{"v":1,"d":"1.00 $"},{"v":42,"d":"42.00 $"},{"v":51,"d":"51.00 $"}]
[null," ",{"$nulls":3},{"$f":"SUBTOTAL(109,Entrées[Total estimé])","v":{"v":1936,"d":"1,936.00 $"}},{"$f":"SUBTOTAL(109,Entrées[Total réel])","v":{"v":1831,"d":"1,831.00 $"}}]
["L’étiquette Publicités dans le programme se trouve dans la cellule de droite.","Publicités dans le programme"]
["Entrez le nombre estimé et réel de publicités dans le programme ainsi que leur prix dans le tableau à partir de la cellule de droite. Les recettes estimé et réel issues des publicités sont calculées automatiquement. L’instruction suivante figure dans la cellule A18.","Estimé","Réel","Type","Prix","Total estimé","Total réel"]
[{"$nulls":3},"Couverture",null,{"$f":"B14*E14","v":{"v":0,"d":"0.00 $"}},{"$f":"C14*E14","v":{"v":0,"d":"0.00 $"}}]
[{"$nulls":3},"Demi-page",null,{"$f":"B15*E15","v":{"v":0,"d":"0.00 $"}},{"$f":"C15*E15","v":{"v":0,"d":"0.00 $"}}]
[{"$nulls":3},"Quart de page",null,{"v":0,"d":"0.00 $"},{"v":0,"d":"0.00 $"}]
[null," ",{"$nulls":3},{"$f":"SUBTOTAL(109,PublicitésDansLeProgramme[Total estimé])","v":{"v":0,"d":"0.00 $"}},{"$f":"SUBTOTAL(109,PublicitésDansLeProgramme[Total réel])","v":{"v":0,"d":"0.00 $"}}]
["L’étiquette Exposants ou fournisseurs figure dans la cellule de droite.","Exposants/Fournisseurs"]
["Entrez le nombre estimé et réel d’exposants et de fournisseurs ainsi que le prix des stands dans le tableau commençant dans la cellule de droite. Les recettes estimé et réel sont calculées automatiquement. L’instruction suivante figure dans la cellule A24.","Estimé","Réel","Type","Prix","Total estimé","Total réel"]
[{"$nulls":3},"Grands stands",null,{"$f":"B20*E20","v":{"v":0,"d":"0.00 $"}},{"$f":"C20*E20","v":{"v":0,"d":"0.00 $"}}]
[{"$nulls":3},"Stands moyens",null,{"$f":"B21*E21","v":{"v":0,"d":"0.00 $"}},{"$f":"C21*E21","v":{"v":0,"d":"0.00 $"}}]
[{"$nulls":3},"Petits stands",null,{"v":0,"d":"0.00 $"},{"v":0,"d":"0.00 $"}]
[null," ",{"$nulls":3},{"$f":"SUBTOTAL(109,ExposantsEtFournisseurs[Total estimé])","v":{"v":0,"d":"0.00 $"}},{"$f":"SUBTOTAL(109,ExposantsEtFournisseurs[Total réel])","v":{"v":0,"d":"0.00 $"}}]
["L’étiquette Vente d’articles se trouve dans la cellule de droite.","Vente d’articles"]
["Entrez le nombre estimé et réel d’articles vendus ainsi que leur prix dans le tableau à partir de la cellule de droite. Les recettes estimé et réel sont calculées automatiquement.","Estimé","Réel","Type","Prix","Total estimé","Total réel"]
[{"$nulls":3},"Articles",null,{"$f":"B26*E26","v":{"v":0,"d":"0.00 $"}},{"$f":"C26*E26","v":{"v":0,"d":"0.00 $"}}]
[{"$nulls":3},"Articles",null,{"$f":"B27*E27","v":{"v":0,"d":"0.00 $"}},{"$f":"C27*E27","v":{"v":0,"d":"0.00 $"}}]
[{"$nulls":3},"Articles",null,{"v":0,"d":"0.00 $"},{"v":0,"d":"0.00 $"}]
[{"$nulls":3},"Articles",null,{"v":0,"d":"0.00 $"},{"v":0,"d":"0.00 $"}]
[null," ",{"$nulls":3},{"$f":"SUBTOTAL(109,VenteArticles[Total estimé])","v":{"v":0,"d":"0.00 $"}},{"$f":"SUBTOTAL(109,VenteArticles[Total réel])","v":{"v":0,"d":"0.00 $"}}]

{"sheet":"Résumé","index":3,"n_rows":9,"n_cols":4,"rows_kept":9,"merged":[[1,1,1,3],[2,2,2,3],[8,1,8,4],[9,1,9,3]]}
["La synthèse de compte de résultat illustrant le total des recettes et des dépenses sont mis à jour automatiquement dans cette feuille de calcul. Des instructions utiles sur l’utilisation de cette feuille de calcul sont disponibles dans les cellules de cette colonne. Appuyez sur la flèche Bas pour commencer."]
["Le nom de l’événement est automatiquement mis à jour dans la cellule de droite.",{"$f":"Dépenses!B2","v":"Budget d’événement pour \nNom de l’événement"}]
["L’étiquette Synthèse des profits et pertes figure en cellule C3. L’instruction suivante figure dans la cellule A5.",null,"Synthèse de résultats"]
[]
["Le tableau Total commençant dans la cellule de droite est automatiquement mis à jour. L’instruction suivante figure dans la cellule A9.","Total","Estimé","Réel"]
[null,"Total des recettes",{"$f":"Recettes!F5","v":{"v":1936,"d":"1,936.00 $"}},{"$f":"Recettes!G5","v":{"v":1831,"d":"1,831.00 $"}}]
[null,"Total des dépenses",{"$f":"Dépenses!G5","v":{"v":1145,"d":"1,145.00 $"}},{"$f":"Dépenses!H5","v":{"v":395,"d":"395.00 $"}}]
[null,"Total des profits (ou pertes)",{"$f":"C6-C7","v":{"v":791,"d":"791.00 $"}},{"$f":"D6-D7","v":{"v":1436,"d":"1,436.00 $"}}]
["Un histogramme groupé comparant le total estimé et réel des recettes et le total estimé et réel des dépenses se trouve dans la cellule de droite.","Un histogramme groupé comparant le total estimé et réel des recettes et le total estimé et réel des dépenses se trouve dans cette cellule."]